bitfinex-derivatives/quotes_SOLF0:USTF0_20241222
["timestamp","ask_amount","ask_price","bid_price","bid_amount"]
[1734885422873,3.16,183.39,183.35,5.27469972]
[1734885423269,3.16,183.39,183.35,2.7289]
[1734885423464,3.16,183.39,183.36,5.27449083]
[1734885423867,2.7291,183.35,183.31,5.0245]
[1734885424168,3.16,183.39,183.32,13.71422204]
[1734885424365,3.16,183.39,183.28,21.54168069]
[1734885424563,1.5934,183.45,183.3,33.45741296]
[1734885424770,2.7283,183.41,183.35,2.729]
[1734885424976,3.16,183.44,183.35,2.729]
[1734885425274,3.16,183.44,183.36,13.70780016]
[1734885425569,2.7282,183.41,183.36,16.43660016]
[1734885425763,2.7282,183.41,183.37,5.27223083]
[1734885425968,2.7282,183.41,183.36,2.7288]
[1734885426170,1.6077,183.5,183.33,36.75611296]
[1734885426371,4.06118535,183.49,183.36,33.45741296]
[1734885426665,2.7276,183.45,183.4,2.7281]
[1734885426865,3.16,183.47,183.4,2.7281]
[1734885427072,3.16,183.47,183.41,5.26921483]
[1734885427370,2.7275,183.45,183.36,36.61741296]
[1734885427572,3.16,183.47,183.37,13.70042971]
[1734885428177,2.7278,183.44,183.38,16.42882971]
[1734885428480,3.313,183.53,183.39,13.70042971]
[1734885428670,3.16,183.48,183.4,13.70042971]
[1734885428869,2.7276,183.45,183.4,16.42852971]
[1734885429068,2.7276,183.45,183.41,5.26939604]
[1734885429378,2.7276,183.45,183.42,5.26939604]
[1734885429768,3.16,183.48,183.42,5.26939604]
[1734885429971,3.16,183.48,183.36,3.16]
[1734885430171,3.16,183.48,183.37,13.70584802]
[1734885430372,2.7282,183.41,183.37,13.70584802]
[1734885430574,2.7282,183.41,183.38,13.70584802]
[1734885430773,2.7282,183.41,183.39,5.27148001]
[1734885431076,2.7282,183.41,183.4,5.27148001]
[1734885431276,2.7282,183.41,183.36,2.7288]
[1734885431679,3.16,183.43,183.37,13.71465566]
[1734885431877,3.16,183.43,183.38,13.71465566]
[1734885432074,3.16,183.43,183.33,3.2987]
[1734885432282,2.7287,183.38,183.33,6.028]
[1734885432481,3.16,183.43,183.34,13.72207759]
[1734885432981,3.16,183.43,183.35,13.72207759]
[1734885433480,3.16,183.43,183.36,13.72207759]
[1734885433682,2.7282,183.41,183.37,13.72207759]
[1734885433981,3.16,183.43,183.38,13.72207759]
[1734885434277,2.7276,183.45,183.4,2.7281]
[1734885434485,3.16,183.47,183.4,2.7281]
[1734885434777,3.16,183.47,183.41,13.72207759]
[1734885435177,3.16,183.47,183.42,5.27772215]
[1734885435577,3.16,183.47,183.4,2.7281]
[1734885435779,2.7279,183.43,183.39,4.3361]
[1734885435980,3.16,183.47,183.4,13.71958518]
[1734885436373,2.7279,183.43,183.39,1.6078]
[1734885436681,3.16,183.47,183.39,1.6078]
[1734885437181,3.16,183.47,183.4,13.73143676]
[1734885437588,3.16,183.47,183.41,5.28132183]
[1734885438079,3.16,183.47,183.42,5.28132183]
[1734885438290,2.7275,183.46,183.43,5.28132183]
[1734885438486,3.16,183.49,183.43,5.28132183]
[1734885438880,2.7274,183.46,183.39,35.06521296]
[1734885439284,3.16,183.49,183.4,14.11080304]
[1734885439480,2.7269,183.5,183.41,14.11080304]
[1734885439786,3.16,183.5,183.42,14.11080304]
[1734885440381,3.16,183.5,183.43,5.42723194]
[1734885440781,2.7271,183.49,183.44,5.42723194]
[1734885440987,3.16,183.5,183.44,5.42723194]
[1734885441180,3.16,183.5,183.39,1.6078]
[1734885441578,3.16,183.5,183.4,14.13076223]
[1734885441782,3.16,183.5,183.41,14.13076223]
[1734885442178,2.7278,183.44,183.42,14.13076223]
[1734885442385,3.16,183.45,183.42,14.13076223]
[1734885442683,3.16,183.45,183.43,14.13076223]
[1734885442884,2.7277,183.44,183.43,5.43490855]
[1734885445285,2.7277,183.44,183.43,2.54368855]
[1734885445488,2.7289,183.36,183.35,88.78411151]
[1734885445792,3.16,183.39,183.35,88.78411151]
[1734885445981,3.16,183.41,183.35,88.78411151]
[1734885446182,2.7284,183.39,183.35,88.78411151]
[1734885446385,3.16,183.41,183.34,20.5654039]
[1734885446994,3.16,183.41,183.36,2.7288]
[1734885447385,3.16,183.41,183.35,8.69363795]
[1734885447686,3.16,183.41,183.37,8.69363795]
[1734885447890,2.7285,183.39,183.37,8.69363795]
[1734885448091,3.16,183.41,183.33,92.08281151]
[1734885449091,3.16,183.41,183.34,8.59676964]
[1734885449286,2.729,183.36,183.34,8.59676964]
[1734885449487,20.5654039,183.48,183.34,8.59676964]
[1734885449684,2.7281,183.42,183.38,2.7285]
[1734885449889,3.16,183.47,183.35,8.59676964]
[1734885450085,1.6332,183.5,183.39,8.59676964]
[1734885450291,2.7281,183.41,183.4,8.59676964]
[1734885450496,3.16,183.44,183.4,8.59676964]
[1734885450794,3.16,183.44,183.41,8.59676964]
[1734885451284,3.16,183.44,183.37,2.7286]
[1734885451285,2.7281,183.42,183.37,2.7286]
[1734885451797,2.7281,183.42,183.38,8.59409594]
[1734885452198,2.7281,183.42,183.39,8.59409594]
[1734885452398,3.16,183.44,183.4,8.59409594]
[1734885452797,3.16,183.44,183.35,113.05361159]
[1734885452798,3.16,183.44,183.41,8.59409594]
[1734885452988,2.728,183.42,183.35,113.05361159]
[1734885453192,3.16,183.44,183.33,6.0279]
[1734885453193,3.16,183.44,183.33,92.08281151]
[1734885453500,2.7274,183.46,183.4,2.7283]
[1734885453690,3.16,183.46,183.41,8.58740529]
[1734885453891,3.16,183.47,183.41,8.58740529]
[1734885454091,3.16,183.47,183.37,20.5654039]
[1734885454698,2.7275,183.46,183.41,2.7281]
[1734885455397,2.7275,183.45,183.41,2.7281]
[1734885456195,3.16,183.48,183.39,1.5698]
[1734885456401,3.16,183.47,183.39,1.5698]
[1734885457399,3.16,183.47,183.4,5.2450147]
[1734885457795,2.728,183.42,183.41,5.2450147]
[1734885461400,2.728,183.42,183.41,13.88370762]
[1734885464594,5.888,183.42,183.41,13.88370762]
[1734885466803,5.888,183.42,183.41,5.2450147]
[1734885468111,5.888,183.42,183.41,13.88950381]
[1734885468497,5.888,183.42,183.41,5.2450147]
[1734885469104,5.888,183.42,183.41,13.88982403]
[1734885469404,5.888,183.42,183.41,5.2450147]
[1734885470507,5.888,183.42,183.41,13.83509971]
[1734885471508,5.888,183.42,183.41,5.2450147]
[1734885472306,2.7288,183.37,183.34,1.6328]
[1734885472501,3.16,183.42,183.35,13.71991928]
[1734885472697,3.16,183.42,183.33,89.03474097]
[1734885472897,20.5654039,183.4,183.33,89.03474097]
[1734885473097,20.5654039,183.37,183.34,5.27993157]
[1734885473304,2.729,183.35,183.34,5.27993157]
[1734885473499,3.16,183.36,183.33,89.03474097]
[1734885473704,20.5654039,183.34,183.33,84.08694097]
[1734885473902,20.5654039,183.34,183.25,147.97351918]
[1734885474209,20.5654039,183.34,183.26,5.20154618]
[1734885474503,2.7298,183.3,183.26,5.20154618]
[1734885474708,2.7298,183.3,183.27,5.20154618]
[1734885475005,2.7298,183.3,183.28,5.20154618]
[1734885475203,2.7299,183.29,183.23,2.7308]
[1734885475508,2.7299,183.29,183.24,5.19151602]
[1734885475904,2.7299,183.29,183.25,5.19151602]
[1734885476109,2.7299,183.29,183.26,5.19151602]
[1734885476310,2.7301,183.28,183.27,5.19151602]
[1734885476602,3.16,183.31,183.27,5.19151602]
[1734885476799,3.16,183.31,183.23,2.7308]
[1734885476996,2.73,183.29,183.24,5.18932659]
[1734885477203,2.73,183.29,183.25,5.18932659]
[1734885477703,2.7301,183.28,183.26,5.18932659]
[1734885478107,2.7301,183.28,183.23,2.7308]
[1734885478504,2.7302,183.27,183.24,5.17859353]
[1734885478903,2.7302,183.27,183.25,5.17859353]
[1734885479205,3.16,183.31,183.22,3.434]
[1734885479409,2.7305,183.26,183.23,5.17873002]
[1734885479709,3.16,183.31,183.24,5.17873002]
[1734885479904,3.16,183.31,183.25,5.17873002]
[1734885480299,3.16,183.31,183.22,3.434]
[1734885480504,3.16,183.31,183.23,5.17511474]
[1734885480707,2.73,183.29,183.25,2.7304]
[1734885481106,20.5654039,183.37,183.24,5.17511474]
[1734885481309,3.16,183.36,183.25,5.17511474]
[1734885481810,2.7299,183.3,183.26,7.90541474]
[1734885482011,2.7299,183.3,183.27,5.17511474]
[1734885482208,2.7299,183.3,183.28,5.17511474]
[1734885482400,2.7299,183.3,183.22,3.434]
[1734885482807,2.7299,183.3,183.26,2.7303]
[1734885483110,3.16,183.31,183.27,5.17083128]
[1734885483506,3.16,183.31,183.22,3.434]
[1734885483905,20.5654039,183.42,183.27,20.5654039]
[1734885484104,4.06156305,183.41,183.3,20.5654039]
[1734885484304,3.16,183.4,183.31,6.74873071]
[1734885484509,3.16,183.4,183.34,2.7291]
[1734885484706,3.16,183.4,183.32,5.17003071]
[1734885484911,3.16,183.4,183.31,1.5787]
[1734885485112,3.16,183.4,183.33,2.7292]
[1734885485302,3.16,183.4,183.31,1.5787]
[1734885485508,3.16,183.4,183.32,5.16131942]
[1734885486011,3.16,183.4,183.33,5.16131942]
[1734885486408,3.16,183.4,183.34,9.49041942]
[1734885486604,3.16,183.4,183.34,6.76131942]
[1734885486811,3.16,183.4,183.35,5.16131942]
[1734885487111,3.16,183.4,183.36,5.16131942]
[1734885487505,3.16,183.4,183.37,5.16131942]
[1734885487709,3.16,183.4,183.34,1.6]
[1734885488211,3.16,183.4,183.35,5.16200053]
[1734885488511,3.16,183.46,183.39,2.7284]
[1734885488708,3.16,183.47,183.4,1.629]
[1734885488912,1.5876,183.54,183.4,1.629]
[1734885489106,4.06099787,183.53,183.43,2.7277]
[1734885489308,0.90099787,183.52,183.43,2.7277]
[1734885490413,3.16,183.51,183.43,2.7277]
[1734885490711,3.16,183.51,183.42,1.6999]
[1734885490907,0.90101151,183.5,183.42,1.6999]
[1734885491112,3.16,183.51,183.42,1.6999]
[1734885495821,0.90101633,183.5,183.4,1.629]
[1734885496124,20.5654039,183.49,183.36,1.6631]
[1734885496419,0.90115027,183.48,183.37,5.16108933]
[1734885496618,20.5654039,183.49,183.36,1.6631]
[1734885497215,20.5654039,183.49,183.37,5.16172281]
[1734885497620,20.5654039,183.49,183.38,5.16172281]
[1734885498015,20.5654039,183.49,183.36,1.6631]
[1734885498215,0.90116922,183.48,183.37,5.16245538]
[1734885498421,20.5654039,183.49,183.37,5.16245538]
[1734885498622,20.5654039,183.49,183.39,2.7283]
[1734885499023,0.9004,183.5,183.36,1.6631]
[1734885499220,3.16,183.51,183.39,20.5654039]
[1734885499428,3.16,183.51,183.4,5.16087451]
[1734885499831,3.16,183.51,183.43,2.7278]
[1734885500035,3.16,183.5,183.41,5.16087451]
[1734885500428,3.16,183.5,183.39,20.5654039]
[1734885500429,3.16,183.5,183.42,5.16087451]
[1734885500629,3.16,183.5,183.43,1.6327]
[1734885500928,3.16,183.5,183.44,2.7276]
[1734885501329,3.16,183.5,183.43,4.3605]
[1734885501723,3.16,183.5,183.43,1.6327]
[1734885502930,20.5654039,183.49,183.36,1.6631]
[1734885503233,20.5654039,183.49,183.36,4.3919]
[1734885503429,20.5654039,183.49,183.36,1.6631]
[1734885503635,20.5654039,183.46,183.37,5.16184297]
[1734885503836,3.16,183.45,183.37,5.16184297]
[1734885504035,3.16,183.45,183.36,1.6631]
[1734885505436,3.16,183.45,183.36,4.3919]
[1734885505632,3.16,183.45,183.36,1.6631]
[1734885505838,3.16,183.45,183.37,5.16435024]
[1734885506334,3.16,183.45,183.36,1.6631]
[1734885507038,3.16,183.45,183.36,4.392]
[1734885507532,3.16,183.45,183.36,1.6631]
[1734885510237,20.5654039,183.41,183.31,1.7105]
[1734885510441,3.16,183.4,183.31,1.7105]
[1734885510837,20.5654039,183.34,183.26,106.61413702]
[1734885511039,3.16,183.33,183.27,5.17051245]
[1734885511439,3.16,183.33,183.26,106.61413702]
[1734885511935,20.5654039,183.31,183.2,108.32463702]
[1734885512135,20.5654039,183.28,183.2,106.61413702]
[1734885512346,3.16,183.27,183.2,106.61413702]
[1734885512739,3.16,183.27,183.19,147.97351918]
[1734885512939,3.16,183.27,183.17,1.6322]
[1734885513136,20.5654039,183.25,183.14,108.22933702]
[1734885513335,3.16,183.27,183.14,106.61413702]
[1734885513336,20.5654039,183.19,183.14,106.61413702]
[1734885513540,3.16,183.18,183.14,106.61413702]
[1734885514146,3.16,183.18,183.1,1.6322]
[1734885514351,3.16,183.18,183.11,5.17332205]
[1734885514646,3.16,183.18,183.1,1.6322]
[1734885515245,3.16,183.18,183.02,109.13097544]
[1734885515445,2.7323,183.13,183.07,1.7346]
[1734885515750,3.16,183.12,183.07,1.7346]
[1734885515946,3.16,183.11,183.07,1.7346]
[1734885516146,3.16,183.1,183.03,1.603]
[1734885516541,2.7332,183.07,183.03,1.603]
[1734885516747,3.14,183.17,183.06,2.7332]
[1734885516944,3.14,183.17,183.04,5.15919152]
[1734885517151,3.14,183.17,183.05,25.72459542]
[1734885517349,56.78,183.2,183.05,28.86459542]
[1734885517350,3.14,183.18,183.05,28.86459542]
[1734885517552,3.14,183.18,183.13,2.7322]
[1734885517752,3.14,183.18,183.08,20.5654039]
[1734885517753,3.14,183.18,183.14,3.2136]
[1734885518349,5.8716,183.18,183.14,3.2136]
[1734885518853,2.732,183.15,183.14,1.6106]
[1734885519352,3.14,183.18,183.14,1.6106]
[1734885520145,3.14,183.18,183.1,1.6185]
[1734885522149,3.16,183.17,183.1,4.3512]
[1734885522347,3.16,183.17,183.1,1.6185]
[1734885522549,2.732,183.15,183.1,1.6185]
[1734885523449,33.51501692,183.24,183.1,1.6185]
[1734885523654,3.16,183.23,183.1,1.6185]
[1734885524055,3.16,183.23,183.11,5.13246498]
[1734885524256,3.16,183.23,183.1,1.6185]
[1734885524656,2.7314,183.19,183.14,2.7321]
[1734885525057,3.16,183.18,183.14,2.7321]
[1734885525959,33.51501692,183.27,183.11,5.13252534]
[1734885526156,3.16,183.26,183.11,5.13252534]
[1734885526353,3.16,183.26,183.12,5.13252534]
[1734885526555,2.7315,183.19,183.11,5.13252534]
[1734885526757,3.16,183.19,183.11,5.13252534]
[1734885526955,2.7311,183.22,183.12,5.13252534]
[1734885527158,3.16,183.23,183.13,38.64754226]
[1734885527363,3.16,183.25,183.14,1.7084]
[1734885527659,3.16,183.26,183.19,33.51501692]
[1734885527962,3.16,183.28,183.2,3.3516]
[1734885528157,3.16,183.28,183.24,2.7305]
[1734885528459,3.16,183.28,183.22,33.51501692]
[1734885528661,3.16,183.28,183.23,1.7084]
[1734885528859,3.16,183.28,183.24,2.7305]
[1734885529159,3.16,183.28,183.23,1.7084]
[1734885530356,3.16,183.28,183.23,4.4392]
[1734885530555,3.16,183.28,183.23,1.7084]
[1734885531060,5.8902,183.28,183.23,1.7084]
[1734885531552,5.8902,183.28,183.23,4.4392]
[1734885532157,3.16,183.28,183.23,1.7084]
[1734885532356,3.16,183.28,183.2,1.6633]
[1734885532656,2.7309,183.23,183.2,1.6633]
[1734885532860,5.8909,183.23,183.2,1.6633]
[1734885533559,2.731,183.22,183.2,1.6633]
[1734885533859,3.16,183.23,183.15,1.6512]
[1734885534266,2.7312,183.21,183.16,2.7318]
[1734885534464,2.7312,183.21,183.15,1.6512]
[1734885534656,3.16,183.23,183.15,1.6512]
[1734885534858,2.731,183.22,183.17,2.7317]
[1734885535058,3.16,183.23,183.17,2.7317]
[1734885535661,3.16,183.23,183.19,2.7314]
[1734885536566,5.8909,183.23,183.19,2.7314]
[1734885536863,5.8909,183.23,183.17,1.6965]
[1734885537056,5.8909,183.23,183.18,2.7315]
[1734885537255,3.16,183.23,183.17,35.21151692]
[1734885537455,3.16,183.27,183.22,2.731]
[1734885537659,2.7303,183.27,183.18,5.13443489]
[1734885537859,2.7303,183.27,183.19,5.13443489]
[1734885538060,3.16,183.28,183.2,5.13443489]
[1734885538266,3.16,183.28,183.21,1.6091]
[1734885538571,3.16,183.28,183.24,2.7305]
[1734885538869,3.16,183.28,183.22,5.13290622]
[1734885539071,3.16,183.28,183.21,1.6091]
[1734885539572,3.16,183.28,183.22,5.13286044]
[1734885539966,3.16,183.28,183.21,1.6091]
[1734885540167,33.51501692,183.36,183.21,1.6091]
[1734885540364,3.16,183.32,183.22,5.13476812]
[1734885540663,3.16,183.34,183.23,35.24041692]
[1734885540966,3.16,183.36,183.23,35.24041692]
[1734885541166,3.16,183.36,183.23,1.7254]
[1734885541361,3.16,183.36,183.24,2.7306]
[1734885542169,3.16,183.36,183.23,4.4562]
[1734885542375,33.51501692,183.34,183.21,1.6091]
[1734885542875,33.51501692,183.34,183.22,5.13914941]
[1734885543073,33.51501692,183.31,183.22,5.13914941]
[1734885543375,3.14,183.3,183.21,1.6091]
[1734885543575,33.51501692,183.28,183.17,1.6965]
[1734885544276,2.7313,183.21,183.17,1.6965]
[1734885544575,3.14,183.21,183.17,1.6965]
[1734885544777,3.14,183.21,183.18,2.7315]
[1734885544975,3.14,183.21,183.17,1.6965]
[1734885545371,3.14,183.21,183.18,5.15067874]
[1734885545771,3.14,183.21,183.12,3.3078]
[1734885546075,2.732,183.16,183.13,5.15595006]
[1734885546477,2.732,183.16,183.14,5.15595006]
[1734885546681,2.732,183.16,183.12,1.6187]
[1734885547082,2.732,183.16,183.13,5.16330506]
[1734885547287,2.7321,183.15,183.12,1.6187]
[1734885547484,33.51501692,183.22,183.09,19.45432713]
[1734885547785,33.51501692,183.19,183.1,5.1676723]
[1734885548085,33.51501692,183.19,183.09,1.6034]
[1734885548285,4.8598,183.21,183.09,1.6034]
[1734885548482,2.7324,183.13,183.1,5.16894664]
[1734885548685,3.14,183.13,183.09,1.6034]
[1734885548880,3.14,183.13,183.07,1.7332]
[1734885549182,3.14,183.13,183.03,17.85092713]
[1734885549581,3.14,183.13,183.04,5.17627379]
[1734885549886,3.14,183.13,183.05,5.17627379]
[1734885550082,2.7326,183.11,183.06,5.17627379]
[1734885550479,2.7326,183.11,183.07,5.17627379]
[1734885550676,2.7328,183.1,183.08,5.17627379]
[1734885550888,3.14,183.13,183.08,5.17627379]
[1734885551087,3.14,183.13,183.02,3.426]
[1734885551391,2.733,183.09,183.02,6.1598]
[1734885551589,3.14,183.08,183.03,5.18052689]
[1734885551787,3.14,183.07,183.04,5.18052689]
[1734885551987,2.7335,183.05,183.04,5.18052689]
[1734885552188,3.14,183.06,182.98,1.569]
[1734885552393,3.14,183.06,182.99,5.18253432]
[1734885552592,1.5838,183.12,182.99,5.18253432]
[1734885552593,3.14,183.05,182.99,5.18253432]
[1734885552888,3.14,183.05,183.0,5.18253432]
[1734885553387,3.14,183.05,183.01,5.18253432]
[1734885553692,2.7338,183.03,183.02,5.18253432]
[1734885554086,3.14,183.05,182.98,1.569]
[1734885554289,3.14,183.05,182.97,1.7104]
[1734885554290,2.7344,182.99,182.94,1.7364]
[1734885554495,33.51501692,183.07,182.95,5.19270941]
[1734885554496,3.14,183.0,182.95,5.19270941]
[1734885554686,3.14,183.02,182.95,5.19270941]
[1734885554890,3.14,183.04,182.97,2.7346]
[1734885555093,3.14,183.04,182.98,5.19270941]
[1734885555390,2.7339,183.03,182.98,5.19270941]
[1734885555593,3.14,183.04,182.99,5.19270941]
[1734885555794,3.14,183.04,183.0,5.19270941]
[1734885555994,2.7338,183.03,183.0,5.19270941]
[1734885556189,2.7338,183.03,183.01,5.19270941]
[1734885556389,3.14,183.04,183.02,5.19270941]
[1734885556895,3.14,183.04,183.03,5.19270941]
[1734885557388,5.8737,183.04,183.03,5.19270941]
[1734885557993,3.14,183.04,183.03,5.19270941]
[1734885558990,33.51501692,183.1,183.03,5.19270941]
[1734885559191,2.7335,183.06,183.04,5.19270941]
[1734885559494,3.14,183.09,182.94,38.39141692]
[1734885559684,3.14,183.09,182.95,5.18292118]
[1734885559886,2.7334,183.06,182.96,5.18292118]
[1734885560087,3.14,183.09,182.96,5.18292118]
[1734885560291,3.14,183.09,182.97,38.6979381]
[1734885560496,33.51501692,183.16,183.0,33.51501692]
[1734885560692,33.51501692,183.16,183.01,3.3833]
[1734885560693,3.14,183.12,183.01,3.3833]
[1734885560990,3.14,183.12,183.02,6.88882118]
[1734885561301,3.14,183.12,183.03,38.6979381]
[1734885561593,3.14,183.12,183.03,5.18292118]
[1734885561789,3.14,183.12,183.04,5.18292118]
[1734885561983,3.14,183.12,183.05,5.18292118]
[1734885562189,2.7328,183.1,183.06,5.18292118]
[1734885562591,2.7328,183.1,183.07,5.18292118]
[1734885562784,2.7328,183.1,183.08,5.18292118]
[1734885562988,2.7328,183.1,183.04,2.7336]
[1734885563284,2.733,183.09,183.05,5.17091075]
[1734885563484,2.733,183.09,183.06,5.17091075]
[1734885563895,2.733,183.09,183.07,5.17091075]
[1734885564093,2.733,183.09,183.02,1.7059]
[1734885564495,3.14,183.12,183.03,5.17368443]
[1734885564800,2.7329,183.1,183.04,5.17368443]
[1734885565090,3.14,183.12,183.05,5.17368443]
[1734885565396,2.7332,183.07,183.02,1.7059]
[1734885565597,3.14,183.12,183.02,4.4398]
[1734885565789,2.7333,183.07,183.03,5.17482868]
[1734885565995,3.14,183.12,183.04,5.17482868]
[1734885566194,3.14,183.12,183.06,2.7333]
[1734885566793,3.14,183.12,183.05,2.7335]
[1734885567298,3.14,183.12,183.06,5.17422623]
[1734885567497,2.7329,183.1,183.06,5.17422623]
[1734885567796,2.7329,183.1,183.05,2.7335]
[1734885569599,2.7329,183.09,183.05,2.7335]
[1734885570293,2.7329,183.09,183.04,2.7336]
[1734885570794,2.7334,183.06,183.02,4.4398]
[1734885570995,3.14,183.12,183.01,3.3833]
[1734885571397,2.7338,183.04,183.01,3.3833]
[1734885571894,3.14,183.06,183.01,3.3833]
[1734885572098,3.14,183.06,182.96,1.685]
[1734885572699,3.14,183.06,182.97,7.91387055]
[1734885573198,2.7344,183.0,182.96,1.685]
[1734885573399,2.7344,183.0,182.96,4.4198]
[1734885574003,3.14,183.01,182.96,1.685]
[1734885574201,2.7346,182.98,182.95,6.2583]
[1734885574494,2.7346,182.98,182.95,6.0389]
[1734885575092,3.14,183.01,182.95,3.304]
[1734885575699,3.14,183.01,182.96,5.17971227]
[1734885575902,3.14,183.01,182.98,2.7345]
[1734885576494,3.14,183.01,182.95,3.304]
[1734885576495,3.14,183.05,182.95,36.81901692]
[1734885576694,3.14,183.06,182.95,36.81901692]
[1734885576902,2.7341,183.01,182.96,5.18024575]
[1734885577103,3.14,183.01,182.97,5.18024575]
[1734885577400,3.14,183.01,182.95,3.304]
[1734885578197,3.14,183.01,182.95,1.7338]
[1734885578698,2.7348,182.97,182.95,1.7338]
[1734885579100,2.7348,182.97,182.93,2.7353]
[1734885579303,33.51501692,183.04,182.94,5.18522448]
[1734885579304,3.14,182.96,182.94,5.18522448]
[1734885579701,3.14,182.96,182.9,1.6969]
[1734885579901,2.7356,182.91,182.89,17.85092713]
[1734885580104,3.14,182.96,182.89,17.85092713]
[1734885580499,3.14,182.96,182.9,5.1869069]
[1734885580799,3.14,182.96,182.89,17.85092713]
[1734885581003,2.7352,182.94,182.89,17.85092713]
[1734885581203,3.14,182.96,182.88,0.26573]
[1734885581707,2.7355,182.92,182.88,0.26573]
[1734885581905,33.51501692,182.98,182.88,0.26573]
[1734885582105,3.14,182.97,182.89,5.1891949]
[1734885582408,3.14,182.96,182.9,5.1891949]
[1734885582800,3.14,182.96,182.91,5.1891949]
[1734885582995,2.7351,182.95,182.91,5.1891949]
[1734885583195,2.7351,182.95,182.88,0.26573]
[1734885583396,3.14,182.96,182.89,5.18948679]
[1734885583604,5.8749,182.96,182.91,2.7356]
[1734885583809,5.8749,182.96,182.9,5.18948679]
[1734885584103,5.8749,182.96,182.91,5.18948679]
[1734885584410,5.8749,182.96,182.92,5.18948679]
[1734885584606,5.8749,182.96,182.93,5.18948679]
[1734885584997,5.8749,182.96,182.94,5.18948679]
[1734885585296,5.8749,182.96,182.92,2.7353]
[1734885585502,2.735,182.95,182.93,5.19792299]
[1734885585802,2.735,182.95,182.94,5.19792299]
[1734885589911,36.65501692,182.98,182.88,0.26573]
[1734885590415,36.65501692,182.98,182.89,5.21802714]
[1734885590611,2.7357,182.91,182.9,5.21802714]
[1734885591015,3.14,182.92,182.9,5.21802714]
[1734885591215,33.51501692,183.06,182.9,5.21802714]
[1734885591216,33.51501692,183.01,182.9,5.21802714]
[1734885591416,33.51501692,183.01,182.91,5.21802714]
[1734885591718,3.14,183.01,182.92,5.21802714]
[1734885591910,2.7344,182.99,182.94,2.735]
[1734885592307,2.7344,182.99,182.95,5.21802714]
[1734885592513,2.7344,182.99,182.96,5.21802714]
[1734885592917,2.7344,182.99,182.97,5.21802714]
[1734885593214,2.7344,182.99,182.94,2.735]
[1734885593215,2.7344,182.99,182.98,5.21802714]
[1734885596417,2.7343,183.0,182.98,5.21802714]
[1734885596620,2.7343,183.0,182.99,5.21802714]
[1734885597222,2.7339,183.02,182.99,5.21802714]
[1734885597721,2.7339,183.02,183.0,5.21802714]
[1734885598122,2.7338,183.03,183.01,5.21802714]
[1734885598423,3.14,183.04,182.94,3.2201]
[1734885598621,3.14,183.04,182.97,2.7346]
[1734885598822,2.7341,183.02,182.97,2.7346]
[1734885599022,2.7341,183.02,182.98,5.21841402]
[1734885599317,2.7341,183.02,182.99,5.21841402]
[1734885599522,2.7341,183.02,183.0,5.21841402]
[1734885599821,2.7341,183.01,182.95,2.7349]
[1734885600022,36.65501692,183.04,182.94,3.2201]
[1734885600321,36.65501692,183.04,182.95,5.21878444]
[1734885600514,36.65501692,183.04,182.96,5.21878444]
[1734885601216,36.65501692,183.04,182.97,5.21878444]
[1734885601523,36.65501692,183.04,182.94,5.9552]
[1734885601725,36.65501692,183.04,182.95,5.21586771]
[1734885602018,2.7345,182.99,182.95,5.21586771]
[1734885602225,2.7345,182.99,182.96,5.21586771]
[1734885602416,2.7345,182.99,182.97,5.21586771]
[1734885602620,3.14,183.06,182.98,5.21586771]
[1734885602818,3.14,183.05,182.98,5.21586771]
[1734885603017,3.14,183.05,182.99,5.21586771]